[Event "*** MasterClass Titled Tuesday Blitz"]
[Site "Chess.com"]
[Date "2017.12.12"]
[Round "10"]
[White "GMAkobianSTL"]
[Black "Arm-Akiba"]
[Result "1/2-1/2"]
[WhiteElo "2686"]
[BlackElo "2706"]
[TimeControl "180+2"]
[EndTime "15:24:10 PST"]
[Termination "Game drawn by agreement"]

1. d4 {[%clk 0:03:01.9]} 1... Nf6 {[%clk 0:03:00.4]} 2. c4 {[%clk 0:03:02.4]}
2... e6 {[%clk 0:03:01.4]} 3. Nc3 {[%clk 0:03:02.2]} 3... Bb4 {[%clk 0:03:01.9]}
4. Qc2 {[%clk 0:03:03.1]} 4... d6 {[%clk 0:03:02.4]} 5. Nf3 {[%clk 0:03:02.5]}
5... Nbd7 {[%clk 0:03:02.3]} 6. a3 {[%clk 0:03:02.3]} 6... Bxc3+ {[%clk
0:03:03.4]} 7. Qxc3 {[%clk 0:03:03.7]} 7... b6 {[%clk 0:03:04.9]} 8. g3 {[%clk
0:03:04.5]} 8... Bb7 {[%clk 0:03:06.1]} 9. Bg2 {[%clk 0:03:05.8]} 9... O-O
{[%clk 0:03:07.1]} 10. O-O {[%clk 0:03:06.8]} 10... a6 {[%clk 0:03:07.8]} 11. b4
{[%clk 0:03:06.6]} 11... b5 {[%clk 0:03:08.6]} 12. Bb2 {[%clk 0:03:04.5]} 12...
Nb6 {[%clk 0:03:08.4]} 13. Nd2 {[%clk 0:02:43.8]} 13... Bxg2 {[%clk 0:03:07.9]}
14. Kxg2 {[%clk 0:02:45]} 14... bxc4 {[%clk 0:02:38.6]} 15. Nxc4 {[%clk
0:02:44.5]} 15... Nfd5 {[%clk 0:02:39.4]} 16. Qd3 {[%clk 0:02:42.9]} 16... Nxc4
{[%clk 0:02:30.8]} 17. Qxc4 {[%clk 0:02:43.1]} 17... f5 {[%clk 0:02:32]} 18. e3
{[%clk 0:02:37.7]} 18... Qg5 {[%clk 0:02:24.6]} 19. Bc1 {[%clk 0:02:36.9]} 19...
Qh5 {[%clk 0:02:20.4]} 20. Ra2 {[%clk 0:02:19.2]} 20... Rf6 {[%clk 0:02:19.4]}
21. Qe2 {[%clk 0:02:19.8]} 21... Qg6 {[%clk 0:02:17.4]} 22. Rc2 {[%clk
0:02:18.8]} 22... Raf8 {[%clk 0:02:11.8]} 23. f4 {[%clk 0:02:06.8]} 23... h5
{[%clk 0:02:04]} 24. h4 {[%clk 0:01:56.3]} 24... R6f7 {[%clk 0:02:03.9]} 25.
Qxa6 {[%clk 0:01:52.4]} 25... Nf6 {[%clk 0:02:02.2]} 26. Rf3 {[%clk 0:01:35.9]}
26... Ne4 {[%clk 0:02:03.2]} 27. a4 {[%clk 0:01:25.5]} 27... Re7 {[%clk
0:01:25.8]} 28. a5 {[%clk 0:01:21.4]} 28... Rb8 {[%clk 0:01:24.8]} 29. Qc4
{[%clk 0:01:14.1]} 29... Qe8 {[%clk 0:01:24.3]} 30. Bd2 {[%clk 0:00:59.9]} 30...
d5 {[%clk 0:01:13.9]} 31. Qd3 {[%clk 0:00:55.6]} 31... Qa4 {[%clk 0:01:09.4]}
32. Be1 {[%clk 0:00:52.2]} 32... Nd6 {[%clk 0:01:04]} 33. Rff2 {[%clk
0:00:49.8]} 33... Nc4 {[%clk 0:01:03.6]} 34. Ra2 {[%clk 0:00:44.4]} 34... Qb5
{[%clk 0:01:01.2]} 35. Rfc2 {[%clk 0:00:43.8]} 35... Ra8 {[%clk 0:00:59.8]} 36.
Rc1 {[%clk 0:00:26.3]} 36... Ra6 {[%clk 0:01:00.2]} 37. Kf2 {[%clk 0:00:18.7]}
37... Kh7 {[%clk 0:00:58.8]} 38. Qc2 {[%clk 0:00:18.2]} 38... Nd6 {[%clk
0:00:51.9]} 39. Qe2 {[%clk 0:00:18.3]} 39... Nc4 {[%clk 0:00:46.2]} 40. Qc2
{[%clk 0:00:17]} 40... Kg6 {[%clk 0:00:45]} 41. Qa4 {[%clk 0:00:16.8]} 41... c6
{[%clk 0:00:42.7]} 42. Qxb5 {[%clk 0:00:17.3]} 42... cxb5 {[%clk 0:00:44.6]} 43.
Rac2 {[%clk 0:00:17.2]} 43... Rc7 {[%clk 0:00:45.7]} 44. Rc3 {[%clk 0:00:17.5]}
44... Kf7 {[%clk 0:00:46.5]} 45. R3c2 {[%clk 0:00:18.5]} 45... Ke8 {[%clk
0:00:47.7]} 46. Rc3 {[%clk 0:00:19.5]} 46... Rac6 {[%clk 0:00:48.7]} 47. Ke2
{[%clk 0:00:18.7]} 47... Kd7 {[%clk 0:00:49.2]} 48. R3c2 {[%clk 0:00:19.5]}
48... Rc8 {[%clk 0:00:48.9]} 49. Rc3 {[%clk 0:00:20.5]} 49... Rh8 {[%clk
0:00:49.6]} 50. R3c2 {[%clk 0:00:21.1]} 50... Rhc8 {[%clk 0:00:50.5]} 51. Rc3
{[%clk 0:00:21.9]} 51... R6c7 {[%clk 0:00:51.9]} 52. R3c2 {[%clk 0:00:21.9]}
52... Rc6 {[%clk 0:00:28.1]} 53. Rc3 {[%clk 0:00:22.2]} 53... R8c7 {[%clk
0:00:29.6]} 54. R3c2 {[%clk 0:00:23.3]} 54... Nxa5 {[%clk 0:00:30]} 55. Rxc6
{[%clk 0:00:21.5]} 55... Nxc6 {[%clk 0:00:31]} 56. Ra1 {[%clk 0:00:21.3]} 56...
Rb7 {[%clk 0:00:32]} 57. Kd3 {[%clk 0:00:22]} 57... Kc7 {[%clk 0:00:32.5]} 58.
Ra6 {[%clk 0:00:21]} 58... Rb8 {[%clk 0:00:32.3]} 59. Bd2 {[%clk 0:00:21.4]}
59... Kb7 {[%clk 0:00:33.4]} 60. Ra1 {[%clk 0:00:21.4]} 60... Rc8 {[%clk
0:00:34.6]} 61. Ra2 {[%clk 0:00:21.3]} 61... Nb8 {[%clk 0:00:35.6]} 62. Ra5
{[%clk 0:00:20.4]} 62... Kb6 {[%clk 0:00:36.3]} 63. Ra8 {[%clk 0:00:20.9]} 63...
Rd8 {[%clk 0:00:32.7]} 64. Bc3 {[%clk 0:00:19.7]} 64... Rc8 {[%clk 0:00:33.8]}
65. Bd2 {[%clk 0:00:20.6]} 65... Re8 {[%clk 0:00:35.4]} 66. Bc3 {[%clk
0:00:21.6]} 66... Rd8 {[%clk 0:00:37]} 67. Bd2 {[%clk 0:00:22.7]} 67... Rc8
{[%clk 0:00:38.5]} 68. Bc3 {[%clk 0:00:23.2]} 68... Kb7 {[%clk 0:00:35]} 69. Ra5
{[%clk 0:00:23.6]} 69... Kc6 {[%clk 0:00:29.5]} 70. Ra8 {[%clk 0:00:21.1]} 70...
Kd7 {[%clk 0:00:30.3]} 71. Ra5 {[%clk 0:00:18.5]} 71... Kc6 {[%clk 0:00:30.6]}
72. Ra8 {[%clk 0:00:18.6]} 72... Kb6 {[%clk 0:00:30.8]} 73. Bd2 {[%clk
0:00:18.4]} 73... Rd8 {[%clk 0:00:32]} 74. Bc3 {[%clk 0:00:19.1]} 74... Nc6
{[%clk 0:00:32.8]} 75. Rxd8 {[%clk 0:00:18.5]} 75... Nxd8 {[%clk 0:00:34]} 76.
Bd2 {[%clk 0:00:19.2]} 76... Nb7 {[%clk 0:00:35.2]} 77. Be1 {[%clk 0:00:19.9]}
77... Kc7 {[%clk 0:00:36.4]} 78. Ke2 {[%clk 0:00:20.4]} 78... Kd7 {[%clk
0:00:37.7]} 79. Kf3 {[%clk 0:00:21.3]} 79... Ke7 {[%clk 0:00:38.6]} 80. Ke2
{[%clk 0:00:22.4]} 80... Nd6 {[%clk 0:00:39.8]} 81. Kf3 {[%clk 0:00:22.6]} 81...
Ne4 {[%clk 0:00:40.5]} 82. Ke2 {[%clk 0:00:23.3]} 82... Kf7 {[%clk 0:00:41.8]}
83. Kf3 {[%clk 0:00:23.6]} 83... Nd6 {[%clk 0:00:43.1]} 84. Ke2 {[%clk
0:00:24.7]} 84... Nc4 {[%clk 0:00:44.2]} 85. Kf3 {[%clk 0:00:25.5]} 85... Kg6
{[%clk 0:00:45.2]} 86. Ke2 {[%clk 0:00:26.5]} 86... Nb2 {[%clk 0:00:43.2]} 87.
Bc3 {[%clk 0:00:25.2]} 87... Na4 {[%clk 0:00:43.6]} 88. Be1 {[%clk 0:00:24.9]}
88... Nb6 {[%clk 0:00:43]} 89. Kf3 {[%clk 0:00:25.8]} 89... Nc8 {[%clk
0:00:44.2]} 90. Ke2 {[%clk 0:00:26.8]} 90... Na7 {[%clk 0:00:45.7]} 91. Kf3
{[%clk 0:00:27.7]} 91... Nc6 {[%clk 0:00:46.8]} 92. Ke2 {[%clk 0:00:28.9]} 92...
e5 {[%clk 0:00:43.7]} 93. fxe5 {[%clk 0:00:26.9]} 93... Nd8 {[%clk 0:00:44.4]}
94. Kf3 {[%clk 0:00:27.5]} 94... Ne6 {[%clk 0:00:45.6]} 95. Bd2 {[%clk
0:00:28.3]} 95... Kf7 {[%clk 0:00:42.4]} 96. Be1 {[%clk 0:00:29.2]} 96... g5
{[%clk 0:00:38.5]} 97. hxg5 {[%clk 0:00:29.4]} 97... Kg6 {[%clk 0:00:39.7]} 98.
Bd2 {[%clk 0:00:30.3]} 98... Nxg5+ {[%clk 0:00:40.7]} 99. Kg2 {[%clk 0:00:25.5]}
99... Ne4 {[%clk 0:00:39.3]} 100. Be1 {[%clk 0:00:25.8]} 100... Kg5 {[%clk
0:00:39.7]} 101. Kf3 {[%clk 0:00:25.9]} 101... Kh6 {[%clk 0:00:36.6]} 102. Kf4
{[%clk 0:00:25.5]} 102... Kg6 {[%clk 0:00:36.5]} 103. Kf3 {[%clk 0:00:22.1]}
103... Kg5 {[%clk 0:00:34.7]} 104. Bf2 {[%clk 0:00:21.1]} 104... Nd2+ {[%clk
0:00:34]} 105. Ke2 {[%clk 0:00:21.9]} 105... Ne4 {[%clk 0:00:26.2]} 106. Kf3
{[%clk 0:00:22.9]} 106... Kg6 {[%clk 0:00:24.2]} 107. Be1 {[%clk 0:00:23.2]}
107... Ng5+ {[%clk 0:00:25.3]} 108. Kf4 {[%clk 0:00:22.1]} 108... Ne6+ {[%clk
0:00:24.5]} 109. Kf3 {[%clk 0:00:23.2]} 1/2-1/2

[Event "*** MasterClass Titled Tuesday Blitz"]
[Site "Chess.com"]
[Date "2017.12.12"]
[Round "10"]
[White "Bryakin_Mikhail"]
[Black "Yaacovn"]
[Result "1/2-1/2"]
[WhiteElo "2549"]
[BlackElo "2628"]
[TimeControl "180+2"]
[EndTime "15:24:59 PST"]
[Termination "Game drawn by repetition"]

1. d4 {[%clk 0:03:01.1]} 1... Nf6 {[%clk 0:03:00.9]} 2. c4 {[%clk 0:03:02.3]}
2... e5 {[%clk 0:03:02.2]} 3. dxe5 {[%clk 0:03:00.5]} 3... Ne4 {[%clk
0:03:03.6]} 4. Nd2 {[%clk 0:03:01.4]} 4... Bb4 {[%clk 0:03:04.2]} 5. Nf3 {[%clk
0:03:00.2]} 5... Nc6 {[%clk 0:03:05.4]} 6. a3 {[%clk 0:02:59.4]} 6... Nxd2
{[%clk 0:03:06.6]} 7. Bxd2 {[%clk 0:02:59.6]} 7... Bxd2+ {[%clk 0:03:07.8]} 8.
Qxd2 {[%clk 0:03:00.2]} 8... O-O {[%clk 0:03:09]} 9. e3 {[%clk 0:02:56.8]} 9...
Qe7 {[%clk 0:03:10.2]} 10. Qc3 {[%clk 0:02:47.7]} 10... Re8 {[%clk 0:03:11.1]}
11. Be2 {[%clk 0:02:47.8]} 11... Nxe5 {[%clk 0:03:12.2]} 12. Nxe5 {[%clk
0:02:49.1]} 12... Qxe5 {[%clk 0:03:14.1]} 13. Qxe5 {[%clk 0:02:50.3]} 13... Rxe5
{[%clk 0:03:16]} 14. Bf3 {[%clk 0:02:51.6]} 14... d6 {[%clk 0:03:17.2]} 15. Kd2
{[%clk 0:02:52.2]} 15... Bd7 {[%clk 0:03:17.6]} 16. Kc3 {[%clk 0:02:52.4]} 16...
Rb8 {[%clk 0:03:18.6]} 17. a4 {[%clk 0:02:34.3]} 17... a5 {[%clk 0:03:17.6]} 18.
Rhd1 {[%clk 0:02:33.7]} 18... b6 {[%clk 0:03:18.5]} 19. Rd5 {[%clk 0:02:33.3]}
19... f6 {[%clk 0:03:12.4]} 20. b4 {[%clk 0:02:26.2]} 20... axb4+ {[%clk
0:03:12.7]} 21. Kxb4 {[%clk 0:02:28.1]} 21... Kf8 {[%clk 0:03:07.5]} 22. Kc3
{[%clk 0:02:16.1]} 22... Ke7 {[%clk 0:03:06.3]} 23. a5 {[%clk 0:02:11.6]} 23...
bxa5 {[%clk 0:03:01.8]} 24. Rdxa5 {[%clk 0:02:12.5]} 24... g5 {[%clk 0:02:49.3]}
25. g3 {[%clk 0:02:06.8]} 25... h6 {[%clk 0:02:45.2]} 26. Be2 {[%clk 0:02:00.8]}
26... Rxa5 {[%clk 0:02:34.3]} 27. Rxa5 {[%clk 0:02:02.7]} 27... Rb7 {[%clk
0:02:33.4]} 28. h4 {[%clk 0:02:01.5]} 28... Rb1 {[%clk 0:02:33.2]} 29. hxg5
{[%clk 0:02:00.7]} 29... fxg5 {[%clk 0:02:32.6]} 30. Ra8 {[%clk 0:01:55.1]}
30... Rh1 {[%clk 0:02:19.1]} 31. Rh8 {[%clk 0:01:54.3]} 31... Rh2 {[%clk
0:02:20.1]} 32. Rh7+ {[%clk 0:01:52.7]} 32... Kd8 {[%clk 0:02:20.1]} 33. Rh8+
{[%clk 0:01:53.6]} 33... Ke7 {[%clk 0:02:21.6]} 34. Rh7+ {[%clk 0:01:54.9]}
34... Kd8 {[%clk 0:02:16.9]} 35. Rh8+ {[%clk 0:01:54.1]} 35... Be8 {[%clk
0:02:11.4]} 36. Bd3 {[%clk 0:01:42.3]} 36... Ke7 {[%clk 0:02:06.1]} 37. f4
{[%clk 0:01:37.7]} 37... gxf4 {[%clk 0:02:02.4]} 38. exf4 {[%clk 0:01:35.4]}
38... Rh3 {[%clk 0:02:01]} 39. f5 {[%clk 0:01:29.8]} 39... Rxg3 {[%clk
0:01:50.6]} 40. Rxh6 {[%clk 0:01:29.5]} 40... Bf7 {[%clk 0:01:48.5]} 41. Kd2
{[%clk 0:01:20.7]} 41... Rg4 {[%clk 0:01:44.8]} 42. Kc3 {[%clk 0:01:21]} 42...
c5 {[%clk 0:01:45]} 43. Rh8 {[%clk 0:00:55.5]} 43... Rg3 {[%clk 0:01:41.7]} 44.
Kd2 {[%clk 0:00:52]} 44... Kf6 {[%clk 0:01:42.6]} 45. Rh7 {[%clk 0:00:31.4]}
45... Rg4 {[%clk 0:01:27.6]} 46. Kc3 {[%clk 0:00:31.6]} 46... Rg3 {[%clk
0:01:25.6]} 47. Kd2 {[%clk 0:00:32]} 47... Bg8 {[%clk 0:01:26.2]} 48. Rd7 {[%clk
0:00:30.4]} 48... Ke5 {[%clk 0:01:09.4]} 49. Re7+ {[%clk 0:00:30.9]} 49... Kf6
{[%clk 0:01:09.2]} 50. Rd7 {[%clk 0:00:31.7]} 50... d5 {[%clk 0:01:06.2]} 51.
cxd5 {[%clk 0:00:27.6]} 51... Ke5 {[%clk 0:01:07.6]} 52. Be2 {[%clk 0:00:12.2]}
52... Bxd5 {[%clk 0:01:05.9]} 53. f6 {[%clk 0:00:13.4]} 53... Rg2 {[%clk
0:00:53.2]} 54. Ke1 {[%clk 0:00:08.9]} 54... Rg6 {[%clk 0:00:52.2]} 55. f7
{[%clk 0:00:06.8]} 55... Rf6 {[%clk 0:00:53.2]} 56. Bh5 {[%clk 0:00:07.8]} 56...
Be6 {[%clk 0:00:51.5]} 57. Rc7 {[%clk 0:00:08]} 57... Kd6 {[%clk 0:00:52.4]} 58.
Ra7 {[%clk 0:00:09.5]} 58... Bc4 {[%clk 0:00:49.5]} 59. Kd2 {[%clk 0:00:07.6]}
59... Ke5 {[%clk 0:00:42.3]} 60. Re7+ {[%clk 0:00:06.2]} 60... Kd4 {[%clk
0:00:41.4]} 61. Rd7+ {[%clk 0:00:07.2]} 61... Ke5 {[%clk 0:00:40.3]} 62. Rd8
{[%clk 0:00:04.4]} 62... Bxf7 {[%clk 0:00:38.2]} 63. Bxf7 {[%clk 0:00:06]} 63...
Rxf7 {[%clk 0:00:39.4]} 64. Kc3 {[%clk 0:00:07.5]} 64... Rf4 {[%clk 0:00:40.5]}
65. Rd7 {[%clk 0:00:07.9]} 65... Rh4 {[%clk 0:00:41.3]} 66. Rd8 {[%clk 0:00:09]}
66... Ke6 {[%clk 0:00:42.7]} 67. Rd1 {[%clk 0:00:09.5]} 67... Rg4 {[%clk
0:00:43]} 68. Rd2 {[%clk 0:00:10.6]} 68... Ke5 {[%clk 0:00:44.2]} 69. Rd1 {[%clk
0:00:11.7]} 69... Ra4 {[%clk 0:00:44.4]} 70. Rd8 {[%clk 0:00:11.9]} 70... Rh4
{[%clk 0:00:44.4]} 71. Rd7 {[%clk 0:00:12.5]} 71... Rg4 {[%clk 0:00:45.5]} 72.
Rd8 {[%clk 0:00:13.4]} 72... Rh4 {[%clk 0:00:45.9]} 73. Rd1 {[%clk 0:00:14]}
73... Ke6 {[%clk 0:00:47]} 74. Rd8 {[%clk 0:00:14.3]} 74... Rg4 {[%clk
0:00:47.5]} 75. Rd1 {[%clk 0:00:15]} 75... Rh4 {[%clk 0:00:47.5]} 76. Rd2 {[%clk
0:00:15.8]} 76... Rh1 {[%clk 0:00:47.8]} 77. Rd8 {[%clk 0:00:16.4]} 77... Rc1+
{[%clk 0:00:48.7]} 78. Kb2 {[%clk 0:00:17.3]} 78... Rc4 {[%clk 0:00:49.3]} 79.
Kb3 {[%clk 0:00:17.1]} 79... Rc1 {[%clk 0:00:50.1]} 80. Kb2 {[%clk 0:00:17.9]}
80... Rh1 {[%clk 0:00:51.2]} 81. Kc3 {[%clk 0:00:18.8]} 81... Rh4 {[%clk
0:00:52.1]} 82. Rd1 {[%clk 0:00:18.8]} 82... Ke5 {[%clk 0:00:53.2]} 83. Rd8
{[%clk 0:00:19.5]} 83... Rh1 {[%clk 0:00:54]} 84. Rd7 {[%clk 0:00:16.5]} 84...
Rc1+ {[%clk 0:00:54.7]} 85. Kb2 {[%clk 0:00:17.6]} 85... Rc4 {[%clk 0:00:54.4]}
86. Rd8 {[%clk 0:00:11.6]} 86... Rd4 {[%clk 0:00:55.3]} 87. Re8+ {[%clk
0:00:11.6]} 87... Kd5 {[%clk 0:00:56.2]} 88. Kc3 {[%clk 0:00:13]} 88... Rc4+
{[%clk 0:00:56.7]} 89. Kd3 {[%clk 0:00:14.4]} 89... Rd4+ {[%clk 0:00:58]} 90.
Kc3 {[%clk 0:00:15.7]} 90... Rh4 {[%clk 0:00:58.8]} 91. Rd8+ {[%clk 0:00:16.3]}
91... Kc6 {[%clk 0:01:00.3]} 92. Rc8+ {[%clk 0:00:17.5]} 92... Kb6 {[%clk
0:01:01.8]} 93. Rb8+ {[%clk 0:00:18]} 93... Kc7 {[%clk 0:01:03.3]} 94. Rg8
{[%clk 0:00:19.3]} 94... Kc6 {[%clk 0:01:04.1]} 95. Rc8+ {[%clk 0:00:20.1]}
95... Kb6 {[%clk 0:01:04.6]} 96. Rb8+ {[%clk 0:00:21.1]} 96... Kc7 {[%clk
0:01:05.5]} 97. Rg8 {[%clk 0:00:21.5]} 97... Rf4 {[%clk 0:01:05.3]} 98. Kd3
{[%clk 0:00:20.6]} 98... Kb6 {[%clk 0:01:02.6]} 99. Kc3 {[%clk 0:00:21.6]} 99...
Rf1 {[%clk 0:00:59.4]} 100. Rb8+ {[%clk 0:00:22.6]} 100... Kc6 {[%clk
0:01:00.5]} 101. Rc8+ {[%clk 0:00:23.6]} 101... Kd6 {[%clk 0:01:02]} 102. Rd8+
{[%clk 0:00:24]} 102... Kc7 {[%clk 0:01:03.4]} 103. Rg8 {[%clk 0:00:24.3]}
103... Rc1+ {[%clk 0:01:04.1]} 104. Kb2 {[%clk 0:00:24.9]} 104... Rh1 {[%clk
0:01:05.1]} 105. Kc3 {[%clk 0:00:24.9]} 105... Rf1 {[%clk 0:00:59.6]} 106. Rh8
{[%clk 0:00:23.6]} 106... Kb7 {[%clk 0:01:00.1]} 107. Rg8 {[%clk 0:00:23.3]}
107... Kb6 {[%clk 0:01:00.6]} 108. Rb8+ {[%clk 0:00:24.1]} 108... Kc7 {[%clk
0:01:01.7]} 109. Rh8 {[%clk 0:00:24.7]} 109... Rf4 {[%clk 0:01:02.6]} 110. Rg8
{[%clk 0:00:24.4]} 110... Rh4 {[%clk 0:01:03.4]} 111. Rf8 {[%clk 0:00:24.9]}
111... Kb7 {[%clk 0:00:56.4]} 112. Rg8 {[%clk 0:00:25.6]} 112... Rf4 {[%clk
0:00:48.7]} 113. Rh8 {[%clk 0:00:25.5]} 113... Kb6 {[%clk 0:00:43.4]} 114. Rb8+
{[%clk 0:00:25.8]} 114... Ka5 {[%clk 0:00:44.7]} 115. Ra8+ {[%clk 0:00:26.2]}
115... Kb5 {[%clk 0:00:45.9]} 116. Rb8+ {[%clk 0:00:27.7]} 116... Kc6 {[%clk
0:00:47]} 117. Rc8+ {[%clk 0:00:28.7]} 117... Kd6 {[%clk 0:00:47.8]} 118. Rd8+
{[%clk 0:00:29.7]} 118... Kc7 {[%clk 0:00:48.9]} 119. Rh8 {[%clk 0:00:30.3]}
119... Rg4 {[%clk 0:00:49.3]} 120. Rf8 {[%clk 0:00:30.7]} 120... Rh4 {[%clk
0:00:46.6]} 121. Rg8 {[%clk 0:00:30.3]} 1/2-1/2